[Event "13th All African Mixed Team Rapid-ch 202"]
[Site "Accra"]
[Date "2024.03.09"]
[Round "2.11"]
[White "Wanyama, Harold"]
[Black "Akpa Prince"]
[Result "1-0"]
[ECO "D80"]
[WhiteElo "2226"]
[BlackElo "1845"]
[Annotator "TA"]
[PlyCount "75"]
[EventDate "2024.03.07"]
[EventType "rapid"]
[EventCountry "GHA"]
[SourceTitle "playchess.com"]
[Source "ChessBase"]
[SourceQuality "1"]
[TimeControl "900+10"]

{[%evp 9,75,0,28,-18,56,55,120,117,158,162,152,146,157,147,223,228,243,-1268,110,-998,225,0,497,96,102,99,255,223,227,219,393,372,557,558,563,563,551,560,1270,1247,1750,1617,29987,29988,29989,29990,29990,29991,29992,29993,29993,29993,29993,29994,29995,29994,29994,29995,29995,29996,29996,29994,29994,29995,29995,29996,29996,29996]} 1. d4 {[%emt 0:00:04]} Nf6 {[%emt 0:00:18]} 2. c4 {[%emt 0:00:03]} g6 {[%emt 0:00:03]} 3. Nc3 {[%emt 0:00:06]} d5 {[%emt 0:00:04]} 4. Bg5 {[%emt 0:00:05]} Bg7 {[%emt 0:00:03]} 5. Rc1 {[%emt 0:00:05]} O-O {[%emt 0:00:21]} 6. Nf3 {[%emt 0:00:03]} (6. Bxf6 {might be stronger.} Bxf6 7. cxd5 (7. Nxd5 Bg7 $15)) 6... Nc6 {[%emt 0:00:08]} (6... Ne4 $11) 7. Bxf6 $14 {[%emt 0:00:39]} Bxf6 {[%emt 0:00:02]} (7... exf6 $14 8. cxd5 (8. Nxd5 f5 $16) 8... Ne7) 8. cxd5 $16 {[%emt 0:00:06] White is better.} ({Of course not} 8. Nxd5 $6 Bg7 $11) 8... Nb4 {[%emt 0:00:50]} 9. e4 {[%emt 0:00:11]} Bg4 {[%emt 0:03:00]} 10. Qb3 {[%emt 0:00:10]} Bxf3 {[%emt 0:00:39]} 11. gxf3 {[%emt 0:00:08]} a5 {[%emt 0:00:13]} (11... c5 $16) 12. a3 $1 $18 {[%emt 0:00:16]} Na6 {[%emt 0:03:01] [#]} 13. Qb4 {[%emt 0:15:24][%mdl 8192]} b6 $2 {[#] Black is weak on the light squares} (13... axb4 $19 14. axb4 Bxd4 (14... Nxb4 $2 15. e5 $19) 15. Bxa6 bxa6 (15... Rxa6 $2 16. b5 $19)) 14. Qxb6 $2 {[%emt 0:00:00][%mdl 8192]} Qd7 $4 {[%emt 0:08:48][%mdl 8192]} (14... cxb6 $19 {avoids the disaster.} 15. e5 Nc7 16. exf6 Nxd5 (16... exf6 $2 17. Bd3 $19)) 15. Qb7 $2 (15. Qb5 $18 Qc8 16. e5 (16. Qxa5 Bxd4 17. Qb5 Qd8 $18)) 15... Qd6 {[%emt 0:00:00][%mdl 8192]} (15... Rfb8 $11 {and Black is okay.} 16. Bb5 Rxb7 17. Bxd7 Rxb2) 16. Nb5 $2 {[%emt 0:00:00]} (16. e5 $18 {and the rest is easy.} Qd7 17. exf6 (17. Bxa6 Bg5 $18)) 16... Qf4 $16 {[%emt 0:00:00][%csl LRc1,LRf3]} 17. Rc3 {[%emt 0:00:00][%cal Of1e2]} c5 $2 {[%emt 0:00:00]} 18. dxc6 $18 {[%emt 0:00:00] Threatens to win with c7.} Rfb8 {[%emt 0:00:00]} 19. Qd7 {[%emt 0:00:00] Strongly threatening c7.} Rd8 $2 {[%emt 0:00:00]} (19... Bg5 20. Be2 Qd2+ 21. Kf1 Rd8) 20. Qg4 {[%emt 0:00:00]} Qb8 {[%emt 0:00:00]} (20... Qxg4 {was called for.} 21. fxg4 Rxd4 22. Nxd4 Bxd4) 21. e5 {[%emt 0:00:00]} Bg7 {[%emt 0:00:00]} 22. c7 {[%emt 0:00:00]} Nxc7 {[%emt 0:00:00]} 23. Rxc7 {[%emt 0:00:00]} Rxd4 {[%emt 0:00:00]} 24. Qxd4 {[%emt 0:00:00]} h5 {[%emt 0:00:00]} 25. Bc4 {[%emt 0:00:00][%cal Oc4f7] Hoping for Bxf7+!} e6 {[%emt 0:00:00]} 26. Rg1 {[%emt 0:00:00] White mates.} Ra6 {[%emt 0:00:00][%cal Ba8a6,Ba6b6,Bb6b2][%mdl 32]} 27. Qd7 {[%emt 0:00:00]} Qf8 {[%emt 0:00:41]} 28. Rc8 {[%emt 0:00:00]} Rb6 {[%emt 0:00:44]} 29. Rxf8+ {[%emt 0:00:00]} Bxf8 {[%emt 0:01:05]} 30. Nd6 {[%emt 0:02:50]} Bxd6 {[%emt 0:00:00]} 31. exd6 {[%emt 0:00:00]} Rxb2 {[%emt 0:00:00] [#]} 32. Rxg6+ $3 {[%emt 0:00:00]} fxg6 {[%emt 0:00:05]} 33. Qxe6+ {[%emt 0:00:00]} Kh7 {[%emt 0:00:10]} 34. Qf7+ {[%emt 0:00:00]} Kh6 {[%emt 0:00:05]} 35. h4 {[%emt 0:00:00]} Rb1+ {[%emt 0:00:08]} 36. Kd2 {[%emt 0:00:00]} Rb2+ {[%emt 0:00:05]} 37. Kc3 {[%emt 0:00:00]} Rb8 {[%emt 0:00:03]} 38. d7 {[%emt 0:00:00] Weighted Error Value: White=1.05/Black=1.33.  Loses game:     	White=1     	---        Missed win:     	White=3     	Black=1      Mistake:       	---       	Black=6      Inaccurate:     	---       	Black=3      OK:         	White=6     	Black=4      Best:        	White=4     	---        Strong:       	White=1     	---} 1-0

[Event "13th All African Mixed Team Rapid-ch 202"]
[Site "Accra"]
[Date "2024.03.09"]
[Round "2.12"]
[White "Ayiku, Angela Naa Amerley"]
[Black "Nakabo, Peninah"]
[Result "1-0"]
[ECO "B12"]
[WhiteElo "1629"]
[BlackElo "1836"]
[Annotator "NA RC"]
[PlyCount "169"]
[EventDate "2024.03.07"]
[EventType "rapid"]
[EventCountry "GHA"]
[SourceTitle "playchess.com"]
[Source "ChessBase"]
[SourceQuality "1"]
[TimeControl "900+10"]

1. e4 {[%emt 0:00:02]} c6 {[%emt 0:00:02]} 2. Nf3 {[%emt 0:00:07]} d5 {[%emt 0:00:02]} 3. e5 {[%emt 0:00:37]} Bf5 {[%emt 0:00:09]} 4. d4 {[%emt 0:00:03]} e6 {[%emt 0:00:04]} 5. Nc3 {[%emt 0:00:02]} h6 {[%emt 0:00:08]} 6. Be2 {[%emt 0:00:04] B12: Caro-Kann (Vorstoß-Variante).} Nd7 {[%emt 0:00:13]} 7. O-O {[%emt 0:00:09]} c5 {[%emt 0:00:09]} 8. b3 {[%emt 0:00:20]} Ne7 {[%emt 0:00:06]} 9. Re1 {[%emt 0:00:13]} Nc6 {[%emt 0:00:06]} 10. Bb5 {[%emt 0:00:08]} Be7 {[%emt 0:00:19]} 11. Bxc6 {[%emt 0:00:03]} bxc6 {[%emt 0:00:02]} 12. Be3 {[%emt 0:00:28]} cxd4 {[%emt 0:00:08]} 13. Nxd4 {[%emt 0:00:15]} Qc7 {[%emt 0:01:15]} 14. Nxf5 {[%emt 0:00:41]} exf5 {[%emt 0:00:04]} 15. Bf4 {[%emt 0:00:11]} Qd8 {[%emt 0:01:39]} 16. Qd2 {[%emt 0:00:29]} O-O {[%emt 0:00:26]} 17. Ne2 {[%emt 0:00:08]} g5 {[%emt 0:01:08]} 18. Be3 {[%emt 0:01:11]} f4 {[%emt 0:00:25]} 19. Bd4 {[%emt 0:00:05]} c5 {[%emt 0:00:09]} 20. Bb2 {[%emt 0:00:11]} d4 {[%emt 0:00:31]} 21. Nc1 {[%emt 0:00:03]} Nb6 {[%emt 0:01:03]} 22. Qe2 {[%emt 0:13:20]} Qd5 {[%emt 0:00:37]} 23. Nd3 {[%emt 0:00:00]} Rae8 {[%emt 0:00:44]} 24. c3 {[%emt 0:00:00]} dxc3 {[%emt 0:00:35]} 25. Bxc3 {[%emt 0:00:00]} c4 {[%emt 0:00:20]} 26. bxc4 {[%emt 0:00:00]} Qxc4 {[%emt 0:00:08]} 27. Bb2 {[%emt 0:00:00]} Rd8 {[%emt 0:00:32]} 28. Nc1 {[%emt 0:00:00]} Qxe2 {[%emt 0:00:10]} 29. Nxe2 {[%emt 0:00:00]} Nc4 {[%emt 0:00:34]} 30. Bd4 {[%emt 0:00:00]} Rd5 {[%emt 0:01:37]} 31. Rac1 {[%emt 0:00:00]} Nxe5 {[%emt 0:00:17]} 32. Bxa7 {[%emt 0:00:00]} Nd3 {[%emt 0:00:55]} 33. Rcd1 {[%emt 0:00:00]} Nxe1 {[%emt 0:00:59]} 34. Rxd5 {[%emt 0:00:00]} Ra8 {[%emt 0:00:18]} 35. Rd7 {[%emt 0:00:00]} Bf6 {[%emt 0:00:01]} 36. Kf1 {[%emt 0:00:00]} Nc2 {[%emt 0:00:04]} 37. a4 {[%emt 0:00:00]} Rd8 {[%emt 0:00:14]} 38. Rxd8+ {[%emt 0:00:00]} Bxd8 {[%emt 0:00:01]} 39. Nc3 {[%emt 0:00:00]} Nb4 {[%emt 0:00:34]} 40. f3 {[%emt 0:00:00]} Nc6 {[%emt 0:00:07]} 41. Nb5 {[%emt 0:00:00]} Nxa7 {[%emt 0:00:07]} 42. Nxa7 {[%emt 0:00:00]} Kf8 {[%emt 0:00:09]} 43. Nc6 {[%emt 0:00:00]} Ke8 {[%emt 0:00:24]} 44. Ke2 {[%emt 0:00:00]} Kd7 {[%emt 0:00:09]} 45. Ne5+ {[%emt 0:00:00]} Ke6 {[%emt 0:00:06]} 46. Nc6 {[%emt 0:00:00]} Bc7 {[%emt 0:00:18]} 47. Kd3 {[%emt 0:00:00]} Kd7 {[%emt 0:00:12]} 48. Nd4 {[%emt 0:00:00]} h5 {[%emt 0:00:34]} 49. h3 {[%emt 0:00:00]} f6 {[%emt 0:01:00]} 50. Nb3 {[%emt 0:00:00]} f5 {[%emt 0:00:15]} 51. a5 {[%emt 0:00:00]} g4 {[%emt 0:00:09]} 52. a6 {[%emt 0:00:00]} Bb6 {[%emt 0:00:44]} 53. Kc4 {[%emt 0:00:00]} h4 {[%emt 0:00:21]} 54. Kb5 {[%emt 0:00:00]} Ba7 {[%emt 0:00:13]} 55. Na5 {[%emt 0:00:00]} Ke6 {[%emt 0:00:48]} 56. Nc6 {[%emt 0:00:00]} Bg1 {[%emt 0:00:11]} 57. a7 {[%emt 0:00:00]} Bxa7 {[%emt 0:00:03]} 58. Nxa7 {[%emt 0:00:00]} Kd5 {[%emt 0:00:04]} 59. Nc6 {[%emt 0:00:00]} g3 {[%emt 0:00:23]} 60. Ne7+ {[%emt 0:00:13]} Ke5 {[%emt 0:00:29]} 61. Ng6+ {[%emt 0:00:02]} Kd4 {[%emt 0:00:21]} 62. Nxf4 {[%emt 0:00:23]} Ke3 {[%emt 0:00:05]} 63. Ng6 {[%emt 0:00:01]} f4 {[%emt 0:00:52]} 64. Nxh4 {[%emt 0:00:04]} Kd4 {[%emt 0:00:04]} 65. Kc6 {[%emt 0:00:01]} Ke5 {[%emt 0:00:02]} 66. Kc5 {[%emt 0:00:03]} Kf6 {[%emt 0:00:06]} 67. Kd4 {[%emt 0:00:02]} Kg5 {[%emt 0:00:03]} 68. Ke4 {[%emt 0:00:04]} Kxh4 {[%emt 0:00:03]} 69. Kxf4 {[%emt 0:00:02]} Kh5 {[%emt 0:00:02]} 70. Kxg3 {[%emt 0:00:05]} Kg5 {[%emt 0:00:03]} 71. h4+ {[%emt 0:07:10]} Kh5 {[%emt 0:01:45]} 72. f4 {[%emt 0:00:00]} Kh6 {[%emt 0:00:00]} 73. f5 {[%emt 0:00:00]} Kh5 {[%emt 0:00:00]} 74. Kh3 {[%emt 0:00:00]} Kh6 {[%emt 0:00:00]} 75. g4 {[%emt 0:00:00]} Kg7 {[%emt 0:00:00]} 76. g5 {[%emt 0:00:00]} Kh7 {[%emt 0:00:00]} 77. h5 {[%emt 0:00:00]} Kg7 {[%emt 0:00:00]} 78. h6+ {[%emt 0:00:00]} Kh7 {[%emt 0:00:00]} 79. Kh4 {[%emt 0:00:00]} Kh8 {[%emt 0:00:00]} 80. g6 {[%emt 0:00:00]} Kg8 {[%emt 0:00:00]} 81. Kg5 {[%emt 0:00:00]} Kh8 {[%emt 0:00:00]} 82. Kf6 {[%emt 0:00:00]} Kg8 {[%emt 0:00:00]} 83. Ke7 $18 {[%emt 0:00:00]} Kh8 {[%emt 0:00:00]} 84. f6 {[%emt 0:00:00]} Kg8 {[%emt 0:00:00]} 85. f7+ {[%emt 0:00:00]} 1-0

[Event "13th All African Mixed Team Rapid-ch 202"]
[Site "Accra"]
[Date "2024.03.09"]
[Round "2.13"]
[White "Pereira, Sergio Murilo de Ara"]
[Black "Paiva, Donaldo"]
[Result "0-1"]
[ECO "B23"]
[WhiteElo "2115"]
[BlackElo "2172"]
[Annotator "RC"]
[PlyCount "80"]
[EventDate "2024.03.07"]
[EventType "rapid"]
[EventCountry "GHA"]
[SourceTitle "playchess.com"]
[Source "ChessBase"]
[SourceQuality "1"]
[TimeControl "900+10"]

1. e4 {[%emt 0:00:01]} c5 {[%emt 0:00:05]} 2. Nc3 {[%emt 0:00:02]} d6 {[%emt 0:00:04]} 3. d4 {[%emt 0:00:03]} cxd4 {[%emt 0:00:03]} 4. Qxd4 {[%emt 0:00:01]} Nc6 {[%emt 0:00:02]} 5. Qd2 {[%emt 0:00:01]} g6 {[%emt 0:00:14]} 6. b3 {[%emt 0:00:01]} Bh6 {[%emt 0:00:06]} 7. f4 {[%emt 0:00:03]} f5 {[%emt 0:01:24]} 8. Bb2 {[%emt 0:00:10]} Nf6 {[%emt 0:00:06]} 9. O-O-O {[%emt 0:00:07]} Rf8 {[%emt 0:00:07]} 10. Kb1 {[%emt 0:00:31]} fxe4 {[%emt 0:00:21]} 11. Nge2 {[%emt 0:01:04]} Bf5 {[%emt 0:01:51]} 12. h3 {[%emt 0:01:00]} Nb4 {[%emt 0:01:38]} 13. Nd4 {[%emt 0:03:25]} Bd7 {[%emt 0:02:26]} 14. g4 {[%emt 0:02:37]} Nfd5 {[%emt 0:03:41]} 15. g5 {[%emt 0:01:40]} e3 {[%emt 0:00:11]} 16. Qe1 {[%emt 0:00:40]} Bg7 {[%emt 0:00:06]} 17. Bb5 {[%emt 0:00:44]} Nxf4 {[%emt 0:02:10]} 18. Rf1 {[%emt 0:01:14]} Nc6 {[%emt 0:01:03]} 19. Bxc6 {[%emt 0:00:42]} bxc6 {[%emt 0:00:02]} 20. Qxe3 {[%emt 0:00:24]} e5 {[%emt 0:01:26]} 21. Ne4 {[%emt 0:01:03]} Qe7 {[%emt 0:00:44]} 22. Nxc6 {[%emt 0:00:11]} Bxc6 {[%emt 0:00:36]} 23. Nxd6+ {[%emt 0:00:01]} Kd7 {[%emt 0:00:08]} 24. Nf5+ {[%emt 0:00:04]} Nd5 {[%emt 0:00:00]} 25. Nxe7 {[%emt 0:00:01]} Rxf1 {[%emt 0:00:02]} 26. Qd2 {[%emt 0:00:59]} Rxd1+ {[%emt 0:00:01]} 27. Qxd1 {[%emt 0:00:01]} Kxe7 {[%emt 0:00:02]} 28. c4 {[%emt 0:00:04]} Nf4 {[%emt 0:00:18]} 29. Ba3+ {[%emt 0:00:10]} Kf7 {[%emt 0:00:03]} 30. Qd6 {[%emt 0:00:24]} Be4+ {[%emt 0:00:01]} 31. Kc1 {[%emt 0:00:05]} Kg8 {[%emt 0:00:05]} 32. c5 {[%emt 0:00:17]} Rc8 {[%emt 0:00:18]} 33. b4 {[%emt 0:00:06]} Bf5 {[%emt 0:00:29]} 34. c6 {[%emt 0:00:25]} Bf8 {[%emt 0:00:12]} 35. Qf6 {[%emt 0:00:15]} Be6 {[%emt 0:00:13]} 36. Bb2 {[%emt 0:00:23]} Rxc6+ {[%emt 0:00:08]} 37. Kd2 {[%emt 0:00:01]} Bxb4+ {[%emt 0:00:23]} 38. Kd1 {[%emt 0:00:01]} Rd6+ {[%emt 0:00:04]} 39. Kc2 {[%emt 0:00:04]} Bf5+ {[%emt 0:00:02]} 40. Kb3 {[%emt 0:00:02]} Rxf6 {[%emt 0:00:02]} 0-1

[Event "13th All African Mixed Team Rapid-ch 202"]
[Site "Accra"]
[Date "2024.03.09"]
[Round "2.15"]
[White "Pedro Manuel Envo Engonga Avom"]
[Black "Rongwane, Gomolemo"]
[Result "0-1"]
[ECO "C56"]
[WhiteElo "1702"]
[BlackElo "2021"]
[Annotator "RC"]
[PlyCount "70"]
[EventDate "2024.03.07"]
[EventType "rapid"]
[EventCountry "GHA"]
[SourceTitle "playchess.com"]
[Source "ChessBase"]
[SourceQuality "1"]
[TimeControl "900+10"]

1. e4 {[%emt 0:00:01]} e5 {[%emt 0:00:02]} 2. Nf3 {[%emt 0:00:03]} Nc6 {[%emt 0:00:03]} 3. d4 {[%emt 0:00:02]} exd4 {[%emt 0:00:03]} 4. Bc4 {[%emt 0:00:02]} Nf6 {[%emt 0:00:09]} 5. O-O {[%emt 0:00:08]} Nxe4 {[%emt 0:00:12]} 6. Re1 {[%emt 0:00:02]} d5 {[%emt 0:00:02]} 7. Bxd5 {[%emt 0:00:03]} Qxd5 {[%emt 0:00:03]} 8. Nc3 {[%emt 0:00:01]} Qa5 {[%emt 0:01:02]} 9. Nxe4 {[%emt 0:00:06]} Be6 {[%emt 0:00:02]} 10. Neg5 {[%emt 0:00:16]} O-O-O {[%emt 0:00:04]} 11. Nxe6 {[%emt 0:02:07]} fxe6 {[%emt 0:00:01]} 12. Ng5 {[%emt 0:00:01]} Re8 {[%emt 0:01:35]} 13. Rxe6 {[%emt 0:00:15]} Bd6 {[%emt 0:00:21]} 14. Qg4 {[%emt 0:02:35]} Kb8 {[%emt 0:00:05]} 15. Bf4 {[%emt 0:01:13]} h5 {[%emt 0:02:34]} 16. Qxh5 {[%emt 0:01:31]} Ref8 {[%emt 0:02:29]} 17. Rae1 {[%emt 0:03:23]} Qxe1+ {[%emt 0:00:29]} 18. Rxe1 {[%emt 0:00:20]} Rxh5 {[%emt 0:00:03]} 19. Bxd6 {[%emt 0:01:27]} cxd6 {[%emt 0:00:04]} 20. Nf3 {[%emt 0:00:40]} Rc5 {[%emt 0:00:29]} 21. Re2 {[%emt 0:01:21]} d3 {[%emt 0:00:04]} 22. cxd3 {[%emt 0:00:09]} Nd4 {[%emt 0:00:02]} 23. Re3 {[%emt 0:02:08]} Nxf3+ {[%emt 0:00:06]} 24. gxf3 {[%emt 0:00:02]} Rg5+ {[%emt 0:00:05]} 25. Kf1 {[%emt 0:00:04]} Rh8 {[%emt 0:00:03]} 26. Re6 {[%emt 0:00:19]} Kc7 {[%emt 0:00:04]} 27. h4 {[%emt 0:00:11]} Rxh4 {[%emt 0:00:03]} 28. Re7+ {[%emt 0:00:07]} Kc6 {[%emt 0:00:03]} 29. Rf7 {[%emt 0:00:12]} Rh1+ {[%emt 0:00:24]} 30. Ke2 {[%emt 0:00:03]} Rb1 {[%emt 0:00:03]} 31. Ke3 {[%emt 0:00:22]} Rxb2 {[%emt 0:00:15]} 32. f4 {[%emt 0:00:05]} Rg1 {[%emt 0:00:09]} 33. f5 {[%emt 0:00:15]} Rxa2 {[%emt 0:00:09]} 34. Kf3 {[%emt 0:00:27]} Rf1 {[%emt 0:00:10]} 35. Rxg7 {[%emt 0:00:13]} Raxf2+ {[%emt 0:00:03]} 0-1

[Event "13th All African Mixed Team Rapid-ch 202"]
[Site "Accra"]
[Date "2024.03.09"]
[Round "2.17"]
[White "Oluka Robert Mcligeyo"]
[Black "Fomevor, Cephas Clinton"]
[Result "1-0"]
[ECO "D13"]
[WhiteElo "2041"]
[BlackElo "1887"]
[Annotator "RC"]
[PlyCount "72"]
[EventDate "2024.03.07"]
[EventType "rapid"]
[EventCountry "GHA"]
[SourceTitle "playchess.com"]
[Source "ChessBase"]
[SourceQuality "1"]
[TimeControl "900+10"]

1. c4 {[%emt 0:00:05]} c6 {[%emt 0:00:01]} 2. d4 {[%emt 0:00:07]} d5 {[%emt 0:00:01]} 3. cxd5 {[%emt 0:00:02]} cxd5 {[%emt 0:00:01]} 4. Nf3 {[%emt 0:00:01]} Nc6 {[%emt 0:00:01]} 5. Nc3 {[%emt 0:00:01]} Nf6 {[%emt 0:00:01]} 6. Bf4 {[%emt 0:00:02]} a6 {[%emt 0:00:01]} 7. Rc1 {[%emt 0:00:11]} Bf5 {[%emt 0:00:03]} 8. e3 {[%emt 0:00:06]} e6 {[%emt 0:00:04]} 9. Qb3 {[%emt 0:00:03]} Ra7 {[%emt 0:00:29]} 10. Be2 {[%emt 0:00:37]} Bd6 {[%emt 0:00:05]} 11. Ne5 {[%emt 0:00:45]} Bxe5 {[%emt 0:02:41]} 12. Bxe5 {[%emt 0:00:10]} Nxe5 {[%emt 0:00:50]} 13. dxe5 {[%emt 0:00:03]} Nd7 {[%emt 0:00:02]} 14. f4 {[%emt 0:00:01]} O-O {[%emt 0:00:13]} 15. O-O {[%emt 0:00:07]} Nc5 {[%emt 0:03:16]} 16. Qd1 {[%emt 0:00:01]} Qb6 {[%emt 0:00:28]} 17. Qd4 {[%emt 0:00:21]} Nd7 {[%emt 0:00:35]} 18. Na4 {[%emt 0:00:36]} Qxd4 {[%emt 0:00:06]} 19. exd4 {[%emt 0:00:01]} b5 {[%emt 0:00:15]} 20. Nc5 {[%emt 0:00:02]} Nb6 {[%emt 0:00:38]} 21. g4 {[%emt 0:00:23]} Be4 {[%emt 0:00:07]} 22. Nxe4 {[%emt 0:00:09]} dxe4 {[%emt 0:00:02]} 23. Rc6 {[%emt 0:00:22]} Nd5 {[%emt 0:00:11]} 24. f5 {[%emt 0:01:17]} exf5 {[%emt 0:00:59]} 25. gxf5 {[%emt 0:00:22]} Nb4 {[%emt 0:00:59]} 26. Rd6 {[%emt 0:00:20]} Nxa2 {[%emt 0:02:28]} 27. Ra1 {[%emt 0:00:21]} Nb4 {[%emt 0:00:07]} 28. Bxb5 {[%emt 0:02:38]} Rb7 {[%emt 0:00:55]} 29. Bc4 {[%emt 0:03:09]} Nc2 {[%emt 0:01:50]} 30. Raxa6 {[%emt 0:01:52]} Rxb2 {[%emt 0:00:55]} 31. Rab6 {[%emt 0:00:50]} Rxb6 {[%emt 0:00:10]} 32. Rxb6 {[%emt 0:00:01]} Nxd4 {[%emt 0:01:31]} 33. e6 {[%emt 0:00:33]} fxe6 {[%emt 0:00:22]} 34. fxe6 {[%emt 0:00:08]} Kh8 {[%emt 0:00:23]} 35. e7 {[%emt 0:00:09]} Re8 {[%emt 0:00:00]} 36. Bf7 {[%emt 0:00:23]} e3 {[%emt 0:00:20]} 1-0

[Event "13th All African Mixed Team Rapid-ch 202"]
[Site "Accra"]
[Date "2024.03.09"]
[Round "2.18"]
[White "Gertrude Banini"]
[Black "Mongeli, Sasha"]
[Result "0-1"]
[ECO "E12"]
[WhiteElo "1681"]
[BlackElo "1858"]
[Annotator "NA RC"]
[PlyCount "90"]
[EventDate "2024.03.07"]
[EventType "rapid"]
[EventCountry "GHA"]
[SourceTitle "playchess.com"]
[Source "ChessBase"]
[SourceQuality "1"]
[TimeControl "900+10"]

1. d4 {[%emt 0:00:05]} Nf6 {[%emt 0:00:03]} 2. c4 {[%emt 0:00:08]} e6 {[%emt 0:00:03]} 3. Nf3 {[%emt 0:00:08]} b6 {[%emt 0:00:14]} 4. Bg5 {[%emt 0:00:04]} h6 {[%emt 0:00:18]} 5. Bh4 {[%emt 0:00:06]} Bb7 {[%emt 0:00:30]} 6. e3 {[%emt 0:00:16]} Be7 {[%emt 0:00:25]} 7. Nc3 {[%emt 0:00:14]} Ne4 {[%emt 0:01:03]} 8. Bxe7 {[%emt 0:00:32]} Qxe7 {[%emt 0:00:08]} 9. Qc2 {[%emt 0:01:36]} Nxc3 {[%emt 0:01:05]} 10. Qxc3 {[%emt 0:00:05]} O-O {[%emt 0:02:26]} 11. Be2 {[%emt 0:00:14]} d6 {[%emt 0:00:10]} 12. O-O {[%emt 0:00:12]} Nd7 {[%emt 0:00:14] E12: Queen's Indian: Unusual White 4th moves, 4 a3, 4 Nc3 Bb7 5 a3 and 4 Nc3 Bb7 .} 13. a3 {[%emt 0:00:21]} Rad8 {[%emt 0:00:33]} 14. Rfd1 {[%emt 0:00:29]} Qf6 {[%emt 0:00:43]} 15. b4 {[%emt 0:01:07]} c5 {[%emt 0:00:48]} 16. Rac1 {[%emt 0:00:22]} Rfe8 {[%emt 0:00:43]} 17. dxc5 {[%emt 0:01:22]} Qxc3 {[%emt 0:00:15]} 18. Rxc3 {[%emt 0:00:06]} dxc5 {[%emt 0:01:07]} 19. Rd6 {[%emt 0:01:13]} Bxf3 {[%emt 0:01:08]} 20. Bxf3 {[%emt 0:00:07]} Ne5 {[%emt 0:00:06]} 21. Rxd8 {[%emt 0:01:22]} Nxf3+ {[%emt 0:00:40]} 22. gxf3 {[%emt 0:00:13]} Rxd8 {[%emt 0:00:03]} 23. Kg2 {[%emt 0:01:15]} Kf8 {[%emt 0:06:15]} 24. f4 {[%emt 0:07:33]} Ke7 {[%emt 0:00:07]} 25. Kf3 {[%emt 0:00:16]} Rd1 {[%emt 0:00:30]} 26. h3 {[%emt 0:00:29]} Rh1 {[%emt 0:00:43]} 27. Kg2 {[%emt 0:00:08]} Rb1 {[%emt 0:00:34]} 28. b5 {[%emt 0:00:48]} Rd1 {[%emt 0:00:25]} 29. Kf3 {[%emt 0:00:51]} Kf6 {[%emt 0:00:27]} 30. h4 {[%emt 0:01:23]} e5 {[%emt 0:01:17]} 31. Ke2 {[%emt 0:01:29]} Rd7 {[%emt 0:01:08]} 32. fxe5+ {[%emt 0:00:42]} Kxe5 {[%emt 0:00:02]} 33. Rd3 {[%emt 0:00:46]} Rxd3 {[%emt 0:00:27]} 34. Kxd3 {[%emt 0:00:03]} h5 {[%emt 0:00:12]} 35. f3 {[%emt 0:00:15]} f6 {[%emt 0:00:22]} 36. Ke2 {[%emt 0:00:14]} g6 {[%emt 0:01:02]} 37. Kf2 {[%emt 0:00:05]} Kf5 {[%emt 0:00:08]} 38. Kg3 {[%emt 0:00:06]} g5 {[%emt 0:00:06]} 39. hxg5 {[%emt 0:00:09]} fxg5 {[%emt 0:00:06]} 40. e4+ {[%emt 0:01:07]} Ke5 {[%emt 0:00:07]} 41. Kh3 {[%emt 0:00:22]} Kf4 {[%emt 0:00:13]} 42. Kg2 {[%emt 0:00:08]} g4 {[%emt 0:00:06]} 43. fxg4 {[%emt 0:00:17]} hxg4 {[%emt 0:00:01]} 44. a4 {[%emt 0:00:17]} Kxe4 {[%emt 0:01:21]} 45. Kg3 {[%emt 0:00:01]} Kd4 {[%emt 0:00:08]} 0-1

[Event "13th All African Mixed Team Rapid-ch 202"]
[Site "Accra"]
[Date "2024.03.09"]
[Round "3.1"]
[White "Mhango, Banele"]
[Black "Silva, David"]
[Result "1-0"]
[ECO "D00"]
[WhiteElo "2193"]
[BlackElo "2358"]
[Annotator "TA"]
[PlyCount "47"]
[EventDate "2024.03.07"]
[EventType "rapid"]
[EventCountry "GHA"]
[SourceTitle "playchess.com"]
[Source "ChessBase"]
[SourceQuality "1"]
[TimeControl "900+10"]

{[%evp 9,47,-27,-12,-8,-10,-6,-16,0,0,0,-10,-8,-6,-14,-9,-12,-19,-14,0,-10,-18,-12,0,-5,-6,-20,325,312,314,315,372,367,859,859,864,860,988,1002,870,685]} 1. d4 {[%emt 0:00:01]} Nf6 {[%emt 0:00:01]} 2. Nc3 {[%emt 0:00:01]} d5 {[%emt 0:00:02]} 3. Bf4 {[%emt 0:00:01]} a6 {[%emt 0:00:01]} 4. e3 {[%emt 0:00:01]} e6 {[%emt 0:00:01]} 5. Bd3 {[%emt 0:00:02]} c5 {[%emt 0:00:13]} 6. dxc5 {[%emt 0:00:01]} Bxc5 {[%emt 0:00:03]} 7. Nf3 {[%emt 0:00:02]} Bd6 {[%emt 0:00:07]} 8. O-O {[%emt 0:00:32] The position is equal.} Nc6 {[%emt 0:00:10]} 9. Bxd6 {[%emt 0:00:17]} Qxd6 {[%emt 0:00:02]} 10. e4 {[%emt 0:00:09]} d4 {[%emt 0:00:08]} 11. Na4 {[%emt 0:00:54]} Nd7 {[%emt 0:00:18] [#] Dodges Nb6. And now ...b5 would win.} 12. c4 {[%emt 0:00:17]} Rb8 {[%emt 0:01:02]} 13. Qe2 {[%emt 0:02:49][%cal Oc4c5]} O-O {[%emt 0:00:15][%cal Ob7b5]} 14. a3 {[%emt 0:00:40][%cal Oc4c5]} b6 {[%emt 0:00:12]} 15. b4 {[%emt 0:00:03]} a5 {[%emt 0:01:26]} 16. c5 {[%emt 0:02:19]} bxc5 {[%emt 0:00:14]} 17. bxc5 {[%emt 0:00:01]} Nxc5 {[%emt 0:02:17][%mdl 8192] Black cannot hold the game after this.} (17... Qc7 $11 {and Black has nothing to worry.}) 18. Nxc5 $18 {[%emt 0:00:59]} Qxc5 {[%emt 0:00:02] [#]} 19. Rfc1 $1 {[%emt 0:00:01]} Qb6 {[%emt 0:03:27]} 20. Rab1 {[%emt 0:01:14]} Bd7 $2 {[%emt 0:05:16]} (20... Qd8 21. Rxc6 Rxb1+ 22. Bxb1 Bd7) 21. Rxb6 {[%emt 0:00:07] White is clearly winning.} Rxb6 {[%emt 0:00:02]} 22. e5 {[%emt 0:00:06]} g6 {[%emt 0:00:12]} 23. Qd2 {[%emt 0:00:14]} Kg7 {[%emt 0:00:07] Prevents Qh6+} 24. Qf4 {[%emt 0:00:10] Weighted Error Value: White=0.01 (flawless) /Black=0.57.  Loses game:     	---       	Black=1      Mistake:       	---       	Black=1      OK:         	White=6     	Black=5      Best:        	White=2     	---        Strong:       	White=1     	---} 1-0